bitfinex-derivatives/quotes_ETHF0:USTF0_20250212
["timestamp","ask_amount","ask_price","bid_price","bid_amount"]
[1739383452252,3.95691,2669.7,2669.4,0.5974]
[1739383452551,0.74916,2669.5,2669.4,0.5974]
[1739383452747,1.86361251,2669.6,2668.9,3.2078]
[1739383453046,0.74923,2669.3,2668.9,4.55451]
[1739383453243,0.74925,2669.2,2668.9,4.55451]
[1739383454043,3.2078,2669.4,2668.9,4.55451]
[1739383454246,3.2078,2669.4,2668.9,3.8052]
[1739383454557,0.74923,2669.3,2669.0,0.74929]
[1739383454949,3.2078,2669.4,2668.9,3.8052]
[1739383455247,1.86361251,2669.6,2669.3,3.85721152]
[1739383455248,0.00561251,2669.6,2669.3,3.85721152]
[1739383455440,0.00561251,2669.6,2669.5,3.95696]
[1739383456551,0.74901,2670.1,2669.8,0.74906]
[1739383456552,3.95681,2670.1,2669.8,0.74906]
[1739383456750,3.95681,2670.1,2669.9,0.74905]
[1739383457145,0.74893,2670.4,2670.1,0.74898]
[1739383457347,7.06501152,2670.7,2669.8,3.2078]
[1739383457545,5.0658,2670.7,2670.3,0.74893]
[1739383457748,0.75451251,2670.5,2670.3,0.74893]
[1739383458251,0.74891,2670.4,2670.0,0.00561251]
[1739383458447,0.00561251,2670.5,2670.0,0.00561251]
[1739383458649,0.75450251,2670.5,2670.3,0.74893]
[1739383458954,0.00561251,2670.5,2670.0,0.00561251]
[1739383459163,0.75450251,2670.5,2670.3,0.74893]
[1739383459571,0.00561251,2670.5,2670.4,0.74891]
[1739383459967,0.75450251,2670.5,2670.0,0.58071251]
[1739383460175,0.00561251,2670.5,2670.2,0.74895]
[1739383460363,0.00561251,2670.5,2670.0,0.58071251]
[1739383460569,0.74898,2670.2,2670.0,1.32972251]
[1739383460870,0.00561251,2670.5,2670.0,0.58071251]
[1739383460871,0.749,2670.1,2670.0,0.58071251]
[1739383461071,3.2078,2670.4,2670.0,0.58071251]
[1739383461369,0.74898,2670.2,2670.0,0.58071251]
[1739383461570,3.2078,2670.4,2670.0,0.58071251]
[1739383461571,0.749,2670.1,2670.0,0.58071251]
[1739383461965,0.749,2670.1,2670.0,0.00561251]
[1739383462166,3.9568,2670.1,2670.0,0.00561251]
[1739383463269,7.81401152,2670.1,2670.0,0.00561251]
[1739383463971,0.7492,2669.4,2668.9,3.2078]
[1739383464173,5.81398,2669.5,2669.3,0.74922]
[1739383464471,1.857,2669.6,2668.9,3.758]
[1739383464669,0.74909,2669.8,2669.5,0.74914]
[1739383464868,5.0648,2669.9,2669.7,0.74909]
[1739383465269,5.0648,2669.9,2669.4,1.87299]
[1739383465468,5.0648,2669.9,2669.2,5.08093]
[1739383465469,5.0648,2669.9,2669.6,0.74911]
[1739383465871,5.0648,2669.9,2669.2,3.2078]
[1739383466070,0.74912,2669.7,2669.5,0.74915]
[1739383466274,0.7491,2669.8,2669.6,0.74913]
[1739383466475,5.0648,2669.9,2669.3,1.87306]
[1739383466675,3.2078,2669.9,2669.3,5.73027152]
[1739383466878,3.2078,2669.9,2669.8,0.74908]
[1739383467472,0.749,2670.1,2669.5,3.95696]
[1739383467675,0.749,2670.1,2669.6,0.587]
[1739383467880,1.857,2670.3,2669.7,0.5657]
[1739383468082,1.857,2670.3,2670.2,0.74897]
[1739383468778,0.00561251,2670.5,2669.8,5.08049]
[1739383468984,1.86261251,2670.5,2670.4,0.74891]
[1739383469276,1.86261251,2670.5,2670.2,0.74895]
[1739383469582,0.74895,2670.3,2670.2,0.74895]
[1739383469978,0.74893,2670.4,2670.3,0.74894]
[1739383470377,1.86261251,2670.5,2670.1,0.74899]
[1739383470378,0.74898,2670.2,2670.1,0.74899]
[1739383470981,1.86261251,2670.5,2669.8,3.2078]
[1739383471280,0.74908,2669.8,2669.7,1.31479]
[1739383471484,0.74908,2669.8,2669.7,0.5657]
[1739383471677,5.0648,2670.0,2669.2,3.2078]
[1739383471678,0.74915,2669.6,2669.4,0.74917]
[1739383471882,0.74915,2669.6,2669.4,0.74916]
[1739383472378,0.74915,2669.6,2669.2,3.2078]
[1739383472584,0.74915,2669.6,2669.5,0.74916]
[1739383473385,3.2078,2669.7,2669.2,5.0809]
[1739383473585,3.95692,2669.7,2669.6,0.74914]
[1739383473784,3.2078,2669.7,2669.6,0.74914]
[1739383473982,3.95691,2669.7,2669.6,0.74914]
[1739383474179,3.2078,2669.7,2669.6,0.74914]
[1739383474483,3.85721152,2670.1,2669.5,0.74916]
[1739383474484,1.857,2669.9,2669.5,0.74916]
[1739383474681,1.857,2669.9,2669.8,0.74908]
[1739383475077,1.1345,2670.4,2669.5,7.81417152]
[1739383475273,2.60595,2670.3,2669.7,1.87273]
[1739383475478,0.74905,2669.9,2669.8,1.30176]
[1739383475687,0.74903,2670.0,2669.9,0.74903]
[1739383476483,3.2078,2670.2,2669.8,1.30176]
[1739383476676,0.74905,2669.9,2669.8,0.5527]
[1739383477288,0.74905,2669.9,2669.8,1.30178]
[1739383477478,3.2078,2670.2,2669.5,3.2078]
[1739383477685,0.7491,2669.8,2669.6,0.74911]
[1739383477884,0.74908,2669.8,2669.6,0.74911]
[1739383478090,0.74912,2669.7,2669.5,0.74915]
[1739383478286,0.74914,2669.7,2669.4,0.74917]
[1739383478503,0.74915,2669.6,2669.4,0.74917]
[1739383478789,0.74915,2669.6,2669.5,0.74916]
[1739383478990,0.74913,2669.7,2669.5,0.74916]
[1739383479587,0.74915,2669.6,2669.4,0.74918]
[1739383479787,3.2078,2669.6,2669.3,0.5804]
[1739383479984,3.2078,2669.6,2668.9,3.2078]
[1739383480184,3.2078,2669.6,2669.2,0.74924]
[1739383480185,0.7492,2669.4,2669.2,0.74924]
[1739383480687,1.857,2669.3,2669.2,0.74925]
[1739383482594,3.2078,2669.6,2669.5,0.74916]
[1739383483190,3.95694,2669.6,2669.5,0.74916]
[1739383483588,3.2078,2669.6,2669.5,0.74916]
[1739383484792,1.857,2669.7,2669.6,0.74914]
[1739383485188,2.60611,2669.7,2669.6,0.74914]
[1739383485491,1.857,2669.7,2669.6,0.74914]
[1739383485696,1.857,2669.7,2669.3,0.5548]
[1739383485893,0.74915,2669.6,2669.3,0.5548]
[1739383486096,1.857,2669.7,2669.3,0.5548]
[1739383486397,0.74918,2669.5,2669.4,0.74918]
[1739383487096,1.857,2669.7,2669.3,0.5548]
[1739383487296,0.74915,2669.6,2669.5,0.74916]
[1739383487496,1.857,2669.7,2669.3,0.5548]
[1739383487697,0.74916,2669.6,2669.4,0.74919]
[1739383487894,0.74916,2669.6,2669.5,0.74916]
[1739383488091,3.2078,2669.9,2669.3,0.5548]
[1739383488291,0.74912,2669.7,2669.6,0.74913]
[1739383489292,1.857,2669.8,2669.3,0.5548]
[1739383489491,0.74915,2669.6,2669.5,0.74916]
[1739383489895,0.74913,2669.7,2669.5,0.74916]
[1739383490096,0.74913,2669.7,2669.6,0.74914]
[1739383490701,1.857,2669.8,2669.3,2.42784]
[1739383490900,0.74914,2669.6,2669.5,0.74916]
[1739383491400,0.74913,2669.7,2669.5,0.74916]
[1739383491792,3.2078,2669.6,2669.5,0.74916]
[1739383492193,3.2078,2669.9,2669.3,2.42785]
[1739383492393,0.74913,2669.7,2669.5,0.74914]
[1739383492600,0.74912,2669.7,2669.6,0.74912]
[1739383492802,1.856,2669.9,2669.3,0.5548]
[1739383492995,3.2078,2669.7,2669.4,0.74917]
[1739383493194,3.2078,2669.7,2669.3,1.30401]
[1739383493396,0.74919,2669.5,2669.3,1.304]
[1739383493603,0.74919,2669.5,2669.4,0.74919]
[1739383493800,3.2078,2669.7,2669.3,0.5548]
[1739383494101,3.31263933,2669.8,2669.3,1.30401]
[1739383494102,3.95699,2669.4,2669.3,1.30401]
[1739383494504,3.95699,2669.4,2669.3,0.5548]
[1739383495093,3.2078,2669.4,2669.1,0.74926]
[1739383495300,3.31263933,2669.2,2668.9,3.8123]
[1739383495601,0.74928,2669.1,2669.0,0.74929]
[1739383495903,0.74931,2669.0,2668.9,1.35382]
[1739383496102,3.9571,2669.1,2668.9,1.35382]
[1739383496304,0.74931,2669.0,2668.9,0.6045]
[1739383497803,0.74931,2669.0,2668.9,1.35383]
[1739383498003,0.74931,2669.0,2668.9,0.6045]
[1739383498308,3.2078,2669.1,2668.0,1.87395]
[1739383498607,0.74946,2668.5,2668.3,0.74949]
[1739383498805,0.74946,2668.5,2668.2,0.6021]
[1739383498998,0.74946,2668.5,2668.2,1.35162]
[1739383499401,0.74945,2668.5,2668.2,1.35162]
[1739383499600,3.2078,2668.6,2668.2,0.6021]
[1739383499801,1.86161251,2668.8,2668.2,0.6021]
[1739383500002,2.61099251,2668.8,2668.5,0.74943]
[1739383500203,1.86161251,2668.8,2668.2,0.6021]
[1739383500398,0.74948,2668.4,2668.2,1.35161]
[1739383500610,0.74946,2668.5,2668.2,1.35161]
[1739383500904,3.2078,2668.6,2668.5,0.74945]
[1739383501103,0.00561251,2668.8,2668.7,0.74939]
[1739383501304,0.35145168,2669.3,2668.8,1.8734]
[1739383501508,0.35145168,2669.3,2669.2,0.74925]
[1739383501808,0.5843,2670.6,2669.2,0.74925]
[1739383501809,3.9568,2670.1,2669.9,0.74904]
[1739383502106,3.2078,2670.1,2669.8,3.31263933]
[1739383502309,0.74911,2669.7,2669.5,1.33745]
[1739383502499,0.74913,2669.7,2669.5,0.5883]
[1739383502705,0.74913,2669.7,2669.5,1.33745]
[1739383503109,0.74914,2669.6,2669.5,0.5883]
[1739383503413,0.74919,2669.4,2669.3,0.00561251]
[1739383503811,3.9569,2669.8,2669.5,0.74916]
[1739383504010,19.62461251,2670.2,2669.3,0.00561251]
[1739383504314,19.62461251,2670.2,2669.7,3.2078]
[1739383504519,19.62461251,2670.2,2670.1,0.749]
[1739383504712,0.00561251,2670.2,2670.1,0.749]
[1739383507513,0.00561251,2670.2,2669.8,1.7379]
[1739383507708,0.00561251,2670.2,2670.0,0.74901]
[1739383507917,0.00561251,2670.2,2670.1,0.749]
[1739383509118,0.00561251,2670.2,2670.1,4.60471572]
[1739383509514,5.0638,2670.9,2670.1,4.60471572]
[1739383509713,5.0638,2670.9,2670.7,0.74882]
[1739383509714,5.81259,2670.9,2670.7,0.74882]
[1739383510211,3.95659,2670.9,2670.8,0.7488]
[1739383510812,3.95659,2670.9,2670.7,0.74881]
[1739383511205,0.00561251,2671.1,2670.4,5.72800572]
[1739383511405,0.00561251,2671.1,2671.0,0.74874]
[1739383512213,0.00561251,2671.1,2670.8,0.00561251]
[1739383512413,0.00561251,2671.1,2671.0,0.74874]
[1739383512414,3.21341251,2671.1,2671.0,0.74874]
[1739383512713,0.00561251,2671.1,2671.0,0.74874]
[1739383513016,0.00561251,2671.1,2671.0,3.95654]
[1739383514006,0.99107,2671.5,2671.0,7.06351572]
[1739383514211,0.99107,2671.5,2671.4,0.74863]
[1739383514815,0.74864,2671.4,2671.3,0.74865]
[1739383515013,0.74866,2671.3,2671.2,0.5454]
[1739383515218,0.74867,2671.3,2671.2,0.74868]
[1739383515618,3.2078,2671.4,2671.1,0.7487]
[1739383515825,0.74869,2671.2,2671.1,0.7487]
[1739383516013,0.74874,2671.1,2670.8,0.55101251]
[1739383516214,0.74874,2671.0,2670.9,0.74875]
[1739383516520,0.74873,2671.1,2671.0,0.74873]
[1739383516815,3.2078,2671.4,2671.1,0.74869]
[1739383517017,0.74867,2671.3,2671.2,0.74868]
[1739383517317,0.74869,2671.2,2671.1,0.74871]
[1739383517816,0.74869,2671.3,2670.8,0.55101251]
[1739383518016,3.2078,2671.4,2670.8,0.55101251]
[1739383518223,6.05387,2671.5,2670.9,1.87194]
[1739383518415,6.05387,2671.5,2671.4,0.74863]
[1739383518919,6.80247,2671.5,2671.4,0.74863]
[1739383519126,0.74868,2671.3,2671.2,0.74868]
[1739383519422,6.05387,2671.5,2671.0,3.2078]
[1739383519620,0.74871,2671.2,2671.1,0.74869]
[1739383519916,0.74877,2670.9,2670.8,0.00561251]
[1739383520125,3.95657,2670.9,2670.8,0.00561251]
[1739383521723,5.81057,2670.9,2670.8,0.00561251]
[1739383522023,5.0618,2670.9,2670.8,0.00561251]
[1739383522224,5.0618,2670.9,2670.8,0.75441251]
[1739383522621,3.2078,2670.9,2670.8,0.75441251]
[1739383523318,3.95657,2670.9,2670.8,0.00561251]
[1739383525025,4.0183123,2670.9,2670.8,0.00561251]
[1739383525616,4.01831433,2670.9,2670.8,0.00561251]
[1739383525818,0.74898,2670.2,2669.9,0.6053]
[1739383526116,0.74901,2670.1,2669.9,0.74904]
[1739383526320,3.95675,2670.3,2670.1,0.74898]
[1739383526515,3.95675,2670.3,2669.8,0.5979]
[1739383526516,0.74886,2670.6,2670.2,3.85571572]
[1739383526717,3.95664,2670.7,2670.6,0.74886]
[1739383527123,3.2078,2670.7,2670.6,0.74886]
[1739383527322,0.00561251,2670.9,2670.8,0.7488]
[1739383527519,0.00561251,2670.9,2670.8,3.9566]
[1739383527723,0.00561251,2670.9,2670.8,7.81231572]
[1739383527923,0.00561251,2670.9,2670.8,3.9566]
[1739383528121,0.00561251,2670.9,2670.8,0.7488]
[1739383528830,0.00561251,2670.9,2670.4,0.60911251]
[1739383529129,3.96219251,2670.9,2670.7,0.74881]
[1739383529315,0.74882,2670.8,2670.6,0.74885]
[1739383529519,3.21341251,2670.9,2670.6,0.74885]
[1739383529726,0.74881,2670.8,2670.6,0.74885]
[1739383530025,3.21341251,2670.9,2670.5,3.2078]
[1739383530231,0.00561251,2670.9,2670.8,4.60451572]
[1739383530529,3.2078,2671.2,2670.8,3.85571572]
[1739383530725,1.73969,2671.5,2671.3,0.74865]
[1739383531126,0.74865,2671.4,2671.3,0.74865]
[1739383531327,1.7397,2671.5,2671.3,0.74865]
[1739383531520,0.99107,2671.5,2671.3,0.74865]
[1739383531717,1.73969,2671.5,2671.3,0.74865]
[1739383532030,0.99107,2671.5,2671.4,0.74863]
[1739383535028,1.73967,2671.5,2671.4,0.74863]
[1739383535528,0.99107,2671.5,2671.4,0.74863]
[1739383536220,1.73967,2671.5,2671.4,0.74863]
[1739383537326,0.74863,2671.4,2671.3,1.30915]
[1739383537520,0.74863,2671.4,2671.3,0.5605]
[1739383537720,0.74863,2671.4,2671.3,1.30916]
[1739383538136,0.74866,2671.3,2671.2,0.74867]
[1739383538321,6.69978572,2671.5,2670.9,3.2078]
[1739383538523,3.2078,2671.0,2670.8,0.5677]
[1739383538728,3.2078,2671.0,2670.4,0.00561251]
[1739383538930,0.74881,2670.8,2670.7,0.74882]
[1739383539428,0.74881,2670.8,2670.6,0.74883]
[1739383539935,0.74881,2670.8,2670.4,0.00561251]
[1739383540232,0.74888,2670.5,2670.4,0.00561251]
[1739383540430,2.60188,2670.5,2670.4,0.00561251]
[1739383540624,0.749,2670.1,2669.6,0.5845]
[1739383540824,3.2078,2670.2,2669.6,0.5845]
[1739383541019,0.749,2670.1,2669.7,0.74908]
[1739383541229,3.2078,2669.9,2669.4,0.6052]
[1739383541526,3.95694,2669.6,2669.2,0.74923]
[1739383541727,3.2078,2669.6,2668.9,3.2078]
[1739383542030,3.95695,2669.6,2669.2,0.74923]
[1739383542224,3.2078,2669.6,2669.1,0.00561251]
[1739383542424,0.74919,2669.5,2669.1,0.75489251]
[1739383542830,0.74919,2669.5,2669.1,0.00561251]
[1739383543032,3.95702,2669.3,2669.1,0.00561251]
[1739383543427,3.2078,2669.3,2669.1,0.00561251]
[1739383544532,3.2078,2669.3,2669.1,0.75486251]
[1739383544726,3.2078,2669.3,2669.2,0.74925]
[1739383544939,3.2078,2669.3,2669.1,0.00561251]
[1739383545237,3.95704,2669.3,2669.1,0.00561251]
[1739383545829,3.2078,2669.3,2669.1,0.00561251]
[1739383546530,3.21341251,2669.7,2669.1,0.00561251]
[1739383546730,3.21341251,2669.7,2669.4,0.74917]
[1739383546932,0.00561251,2669.7,2669.6,0.74914]
[1739383547433,1.853,2670.1,2669.5,5.08072]
[1739383547633,0.74904,2670.0,2669.8,0.74906]
[1739383547829,0.74904,2670.0,2669.6,0.5999]
[1739383547830,0.74906,2669.9,2669.6,1.34901]
[1739383548038,0.74903,2670.0,2669.6,0.5999]
[1739383548236,1.853,2670.1,2669.6,0.5999]
[1739383548530,0.74909,2669.8,2669.6,1.34902]
[1739383548934,3.2078,2669.9,2669.6,0.5999]
[1739383549237,3.95687,2669.9,2669.6,1.34901]
[1739383549424,0.74904,2670.0,2669.6,0.5999]
[1739383549628,5.06641251,2670.1,2669.6,0.5999]
[1739383549833,0.74905,2670.0,2669.7,0.74909]
[1739383550233,5.06641251,2670.1,2669.6,0.5999]
[1739383550433,0.74906,2669.9,2669.6,1.34902]
[1739383550634,0.74906,2669.9,2669.7,0.74911]
[1739383551131,5.06641251,2670.1,2669.6,0.5999]
[1739383551433,1.85861251,2670.1,2669.9,0.74903]
[1739383551628,1.85861251,2670.1,2669.6,0.5999]
[1739383551828,5.06641251,2670.1,2669.6,0.5999]
[1739383552028,0.74906,2669.9,2669.7,0.7491]
[1739383552434,0.74906,2669.9,2669.7,0.74911]
[1739383552623,5.06641251,2670.1,2669.6,0.5999]
[1739383552826,3.2078,2669.8,2669.6,0.74912]
[1739383553239,3.2078,2669.8,2669.7,0.74911]
[1739383554141,1.85861251,2670.1,2669.4,0.5483]
[1739383554329,3.2078,2670.0,2669.9,0.74905]
[1739383554631,3.2078,2670.0,2669.4,0.5483]
[1739383554841,0.74909,2669.8,2669.4,0.5483]
[1739383555035,0.74909,2669.8,2669.6,0.74912]
[1739383555333,0.74909,2669.8,2669.4,0.5483]
[1739383555634,0.74909,2669.8,2669.6,0.74911]
[1739383555833,0.74909,2669.8,2669.4,0.5483]
[1739383555834,5.0608,2670.0,2669.4,0.5483]
[1739383556134,5.0608,2670.0,2669.6,0.74913]
[1739383556331,0.74907,2669.9,2669.4,0.5483]
[1739383556532,0.74907,2669.9,2669.8,0.74908]
[1739383557336,0.74907,2669.9,2669.4,2.42126]
[1739383557545,0.74907,2669.9,2669.7,0.74909]
[1739383558040,5.80984,2670.0,2669.8,0.74906]
[1739383558225,5.80984,2670.0,2669.4,2.42126]
[1739383558226,0.00561251,2670.1,2669.6,1.87284]
[1739383558431,1.85861251,2670.1,2670.0,0.74902]
[1739383558630,0.00561251,2670.1,2670.0,0.74902]
[1739383558832,0.00561251,2670.1,2669.6,1.87284]
[1739383558833,0.75461251,2670.1,2669.5,3.2078]
[1739383559038,0.00561251,2670.1,2669.6,1.87285]
[1739383559438,0.74903,2670.0,2669.9,0.74904]
[1739383559633,0.74903,2670.0,2669.5,3.2078]
[1739383559634,7.06351572,2670.0,2669.4,0.5483]
[1739383559937,3.2078,2669.6,2669.1,0.00561251]
[1739383560128,0.74924,2669.3,2669.2,0.74925]
[1739383560332,1.852,2669.5,2669.2,0.74923]
[1739383560533,1.852,2669.5,2669.1,0.75488251]
[1739383560734,3.95705,2669.2,2669.1,0.00561251]
[1739383562136,4.01883346,2669.2,2669.1,0.00561251]
[1739383562833,0.74941,2668.7,2668.4,1.30007]
[1739383563040,5.0598,2668.7,2667.9,3.2078]
[1739383563233,0.74948,2668.4,2668.0,0.5467]
[1739383563439,3.2078,2668.4,2668.0,0.5467]
[1739383563644,3.2078,2668.4,2668.2,0.74953]
[1739383563843,3.2078,2668.4,2668.0,0.5467]
[1739383564040,3.2078,2668.4,2668.2,0.74951]
[1739383564236,3.2078,2668.4,2668.0,0.5467]
[1739383564544,3.2078,2668.4,2667.9,0.00561251]
[1739383564738,0.74959,2668.0,2667.9,0.00561251]
[1739383564934,2.60259,2668.0,2667.9,0.00561251]
[1739383565138,1.853,2668.0,2667.9,0.00561251]
[1739383565737,1.853,2668.0,2667.9,0.75522251]
[1739383565934,3.2078,2668.1,2667.9,0.00561251]
[1739383566237,1.853,2668.3,2668.1,0.74955]
[1739383566636,1.853,2668.3,2667.9,0.00561251]
[1739383566843,1.853,2668.3,2668.2,0.74953]
[1739383567039,3.2078,2668.4,2668.3,0.7495]
[1739383567343,3.2078,2668.4,2668.0,0.5564]
[1739383567544,3.95728,2668.4,2668.2,0.74951]
[1739383568342,3.95728,2668.4,2668.0,0.5564]
[1739383568343,3.2078,2668.4,2668.3,0.7495]
[1739383570342,0.00561251,2668.5,2668.4,0.74947]
[1739383570841,0.00561251,2668.5,2668.3,0.74948]
[1739383571042,3.21341251,2668.5,2668.2,0.74951]
[1739383571242,0.74959,2668.0,2667.9,0.00561251]
[1739383572544,2.60259,2668.0,2667.9,0.00561251]
[1739383576346,0.74975,2667.4,2667.2,0.7498]
[1739383576649,0.74978,2667.3,2667.1,0.74982]
[1739383577353,0.7498,2667.3,2667.1,0.74983]
[1739383577556,3.2078,2667.4,2667.1,0.74983]
[1739383577749,3.2078,2667.4,2666.9,1.10762335]
[1739383577943,3.2078,2667.4,2667.2,0.7498]
[1739383578150,3.2078,2667.4,2667.3,0.74978]
[1739383578457,3.2078,2667.4,2667.2,0.74979]
[1739383578655,3.95758,2667.4,2667.1,0.74984]
[1739383578859,0.74979,2667.3,2667.0,0.74984]
[1739383579156,3.2078,2667.4,2667.0,0.74984]
[1739383579655,0.74978,2667.4,2667.1,0.74982]
[1739383579954,1.852,2667.5,2666.9,1.10762335]
[1739383580155,0.74981,2667.3,2667.1,0.74982]
[1739383580347,1.852,2667.5,2666.9,1.10762335]
[1739383580548,3.2078,2667.3,2666.9,1.10762335]
[1739383581254,3.2078,2667.3,2666.9,0.55922335]
[1739383581455,0.74984,2667.1,2667.0,0.74987]
[1739383582151,0.74984,2667.1,2666.9,0.55922335]
[1739383582351,0.74986,2667.1,2667.0,0.74987]
[1739383582657,0.74982,2667.2,2667.1,0.74982]
[1739383583053,0.74985,2667.1,2667.0,0.74985]
[1739383583255,0.7498,2667.3,2667.2,0.7498]
[1739383583455,0.7498,2667.3,2667.2,0.74979]
[1739383583746,22.8408,2668.0,2666.9,4.41493907]
[1739383583951,0.74969,2667.7,2667.6,0.74967]
[1739383584153,5.0608,2667.9,2667.2,1.1785]
[1739383584359,0.74972,2667.6,2667.5,0.74972]
[1739383584550,5.0608,2667.9,2667.2,1.1785]
[1739383584855,5.0608,2667.9,2666.9,6.28965907]
[1739383584856,0.74985,2667.1,2667.0,0.74987]
[1739383587056,1.853,2667.4,2666.9,0.55922335]
[1739383587248,0.74981,2667.3,2667.2,0.7498]
[1739383587755,2.60173,2667.6,2667.5,0.74971]
[1739383588148,0.74981,2667.3,2667.2,0.74979]
[1739383588348,0.74981,2667.3,2667.0,3.2078]
[1739383588349,0.74987,2667.1,2667.0,0.74986]
[1739383588748,0.74983,2667.2,2667.1,0.74982]
[1739383588953,3.8083,2667.5,2667.2,0.7498]
[1739383588954,0.74981,2667.3,2667.2,0.7498]
[1739383589357,1.852,2667.6,2667.0,0.5685]
[1739383589556,0.74977,2667.4,2667.3,0.74976]
[1739383590451,0.74982,2667.2,2667.1,0.74981]
[1739383590763,0.74982,2667.2,2667.1,0.74984]
[1739383591162,5.08215,2667.5,2666.9,0.55922335]
[1739383591452,0.74986,2667.1,2667.0,0.74985]
[1739383592456,0.74983,2667.2,2667.1,0.74983]
[1739383592856,0.74981,2667.3,2667.2,0.7498]
[1739383593057,0.35168222,2667.4,2666.9,0.55922335]
[1739383593257,0.74983,2667.2,2667.1,0.74983]
[1739383593556,0.74983,2667.2,2667.1,0.75348423]
[1739383593953,0.35168222,2667.4,2667.1,0.00365423]
[1739383594160,4.12478222,2667.5,2667.1,0.00365423]
[1739383594355,3.95761,2667.2,2667.1,0.00365423]
[1739383594856,4.30929222,2667.2,2667.1,0.00365423]
[1739383595759,5.0451175,2667.2,2667.1,0.00365423]
[1739383596256,0.74987,2667.0,2666.9,0.00562335]
[1739383596559,2.60187,2667.0,2666.9,0.00562335]
[1739383596760,2.78946283,2667.0,2666.9,0.00562335]
[1739383597157,6.10836909,2667.0,2666.9,0.00562335]
[1739383597463,6.09438008,2667.0,2666.4,0.5777]
[1739383597755,0.75001,2666.5,2666.4,1.32771]
[1739383598154,3.2078,2666.6,2666.4,0.5777]
[1739383598361,3.2078,2666.6,2666.3,0.75005]
[1739383598362,0.75004,2666.4,2666.3,0.75005]
[1739383598557,0.75006,2666.3,2666.1,0.75011]
[1739383598760,2.60205,2666.4,2666.2,0.72910399]
[1739383598960,1.852,2666.4,2665.9,0.5523]
[1739383599460,3.2078,2666.3,2665.9,0.5523]
[1739383599663,0.75015,2666.0,2665.9,1.30247]
[1739383599954,0.75015,2666.0,2665.9,0.5523]
[1739383600163,3.2078,2666.0,2665.6,0.5609]
[1739383600458,3.2078,2666.0,2665.8,0.7502]
[1739383600459,1.852,2665.9,2665.8,0.7502]
[1739383600662,3.2078,2666.0,2665.6,3.87980626]
[1739383600859,2.60205,2666.4,2665.7,0.5727]
[1739383601059,2.60204,2666.4,2665.8,1.87549]
[1739383601368,2.60205,2666.4,2666.2,0.75007]
[1739383601658,1.852,2666.4,2665.8,1.87549]
[1739383601855,3.95786,2666.3,2666.1,0.7501]
[1739383602060,3.95786,2666.3,2666.1,0.75012]
[1739383602061,0.75011,2666.2,2666.1,0.75012]
[1739383602251,3.95787,2666.3,2666.2,0.75009]
[1739383602456,3.2078,2666.3,2666.2,0.75009]
[1739383602664,0.35179082,2666.5,2666.4,0.75004]
[1739383602961,4.31520417,2666.6,2666.4,0.75004]
[1739383603163,3.56521417,2666.6,2666.5,0.75001]
[1739383603364,3.21342335,2666.6,2666.5,0.75001]
[1739383604257,3.96340335,2666.6,2666.5,0.75001]
[1739383604458,0.75002,2666.5,2666.4,0.75002]
[1739383604858,0.75004,2666.4,2666.3,0.5544]
[1739383605058,3.56519532,2666.6,2666.1,0.555]
[1739383605261,3.56519532,2666.6,2666.2,0.5753]
[1739383605453,4.31518532,2666.6,2666.4,0.75002]
[1739383605659,3.96341335,2666.6,2666.4,0.75002]
[1739383605860,0.75001,2666.5,2666.4,0.75002]
[1739383606463,3.21342335,2666.6,2666.2,0.5753]
[1739383606960,0.75006,2666.3,2666.2,0.5753]
[1739383607160,0.75006,2666.3,2666.1,0.555]
[1739383607161,3.2078,2666.3,2666.1,0.555]
[1739383607468,3.2078,2666.3,2665.8,0.5928]
[1739383607766,3.2078,2666.3,2666.2,0.75009]
[1739383608068,3.95786,2666.3,2666.2,0.75009]
[1739383608766,3.5651989,2666.6,2666.0,3.2078]
[1739383608969,4.3151889,2666.6,2666.5,0.75001]
[1739383609466,3.21342335,2666.6,2666.5,0.75001]
[1739383609870,3.96340335,2666.6,2666.5,0.75001]
[1739383610759,0.75003,2666.5,2666.4,0.75002]
[1739383611366,3.21342335,2666.6,2666.1,1.87531]
[1739383611670,3.96342335,2666.6,2666.5,0.75001]
[1739383611869,3.21342335,2666.6,2666.5,0.75001]
[1739383612070,0.00562335,2666.6,2666.5,0.75001]
[1739383612370,0.00562335,2666.6,2666.5,1.34491]
[1739383612571,0.00562335,2666.6,2666.5,1.90581]
[1739383614370,0.75560335,2666.6,2666.5,1.90581]
[1739383615067,0.00562335,2666.6,2666.5,5.22471626]
[1739383616265,2.60187,2667.0,2666.9,0.7499]
[1739383616470,0.35172434,2667.1,2667.0,0.74987]
[1739383616671,3.2078,2667.2,2666.8,3.31890626]
[1739383616870,3.2078,2667.2,2667.1,0.74984]
[1739383617071,3.95761,2667.2,2667.1,0.74984]
[1739383617769,3.2078,2667.2,2667.1,0.74984]
[1739383618173,3.95761,2667.2,2667.1,0.74984]
[1739383618372,3.95763,2667.2,2667.1,0.74984]
[1739383618669,3.95763,2667.2,2666.4,1.8751]
[1739383618670,0.74996,2666.8,2666.4,1.8751]
[1739383618971,0.74996,2666.8,2666.7,0.74994]
[1739383619368,0.75,2666.6,2666.5,0.74997]
[1739383620268,0.35169158,2666.8,2666.3,0.5766]
[1739383620482,0.74997,2666.7,2666.6,0.74995]
[1739383620676,0.75003,2666.5,2666.4,0.75004]
[1739383621069,0.75004,2666.5,2666.4,0.75002]
[1739383621269,3.95771,2666.9,2666.8,0.74992]
[1739383621470,3.9577,2666.9,2666.8,0.74992]
[1739383621671,3.2078,2666.9,2666.8,0.74992]
[1739383621874,0.74988,2667.0,2666.9,0.74987]
[1739383622176,0.35170032,2667.0,2666.7,0.5812]
[1739383622378,0.75,2666.6,2666.5,0.74999]